[Event "*** SCC Grand Prix: Titled Tuesday Blitz"]
[Site "Chess.com"]
[Date "2020.06.02"]
[Round "2"]
[White "silverback96"]
[Black "ketster"]
[Result "1-0"]
[WhiteElo "2222"]
[BlackElo "2420"]
[TimeControl "180+1"]
[EndTime "10:19:04 PDT"]
[Termination "silverback96 won on time"]

1. e4 {[%clk 0:03:00.9]} 1... e5 {[%clk 0:02:59.5]} 2. Nf3 {[%clk 0:03:01.4]}
2... Nc6 {[%clk 0:02:59.3]} 3. Bc4 {[%clk 0:02:57.8]} 3... Nf6 {[%clk
0:02:58.9]} 4. d3 {[%clk 0:02:55.8]} 4... Be7 {[%clk 0:02:58.5]} 5. O-O {[%clk
0:02:56.1]} 5... O-O {[%clk 0:02:58.4]} 6. c3 {[%clk 0:02:55.8]} 6... d5 {[%clk
0:02:57.7]} 7. exd5 {[%clk 0:02:55.1]} 7... Nxd5 {[%clk 0:02:57.9]} 8. Re1
{[%clk 0:02:55.3]} 8... Bg4 {[%clk 0:02:50.8]} 9. h3 {[%clk 0:02:53.1]} 9... Bh5
{[%clk 0:02:49.2]} 10. Nbd2 {[%clk 0:02:50.9]} 10... Nb6 {[%clk 0:02:46.5]} 11.
Bb5 {[%clk 0:02:45.3]} 11... f6 {[%clk 0:02:08.8]} 12. Bxc6 {[%clk 0:02:37.9]}
12... bxc6 {[%clk 0:02:08.4]} 13. Ne4 {[%clk 0:02:32]} 13... Qd5 {[%clk
0:01:55.8]} 14. g4 {[%clk 0:02:20]} 14... Bg6 {[%clk 0:01:54.2]} 15. Nh4 {[%clk
0:02:17.5]} 15... f5 {[%clk 0:01:42.4]} 16. Nxg6 {[%clk 0:02:16.5]} 16... hxg6
{[%clk 0:01:41.6]} 17. Ng5 {[%clk 0:02:09.7]} 17... Rad8 {[%clk 0:01:25.2]} 18.
Qe2 {[%clk 0:01:49.7]} 18... Qxd3 {[%clk 0:00:57.1]} 19. Qxe5 {[%clk 0:01:47.7]}
19... Bxg5 {[%clk 0:00:53.3]} 20. Qe6+ {[%clk 0:01:44.1]} 20... Kh7 {[%clk
0:00:47.5]} 21. Bxg5 {[%clk 0:01:45]} 21... Rde8 {[%clk 0:00:27.4]} 22. Qxe8
{[%clk 0:00:57.9]} 22... Rxe8 {[%clk 0:00:28.3]} 23. Rxe8 {[%clk 0:00:58.8]}
23... Qxh3 {[%clk 0:00:28.3]} 24. Re3 {[%clk 0:00:59.4]} 24... Qxg4+ {[%clk
0:00:25.5]} 25. Rg3 {[%clk 0:00:59.9]} 25... Qe2 {[%clk 0:00:23.1]} 26. Kg2
{[%clk 0:00:49.8]} 26... Nd5 {[%clk 0:00:20.4]} 27. Rh1+ {[%clk 0:00:46]} 27...
Kg8 {[%clk 0:00:20.3]} 28. c4 {[%clk 0:00:43.6]} 28... Qxc4 {[%clk 0:00:18.1]}
29. Re1 {[%clk 0:00:43]} 29... Kf7 {[%clk 0:00:16.5]} 30. Ra3 {[%clk 0:00:23.2]}
30... Qg4+ {[%clk 0:00:15.4]} 31. Rg3 {[%clk 0:00:21.1]} 31... Qc4 {[%clk
0:00:15.5]} 32. a3 {[%clk 0:00:18.1]} 32... a5 {[%clk 0:00:11.5]} 33. Kg1 {[%clk
0:00:13.6]} 33... a4 {[%clk 0:00:11.6]} 34. Bd2 {[%clk 0:00:12.2]} 34... Nf6
{[%clk 0:00:10.1]} 35. Bc3 {[%clk 0:00:11.9]} 35... Ne4 {[%clk 0:00:09.8]} 36.
Rh3 {[%clk 0:00:12.4]} 36... Nc5 {[%clk 0:00:06.1]} 37. Rh7 {[%clk 0:00:11.9]}
37... Qg4+ {[%clk 0:00:05.7]} 38. Kf1 {[%clk 0:00:11.7]} 38... Qc4+ {[%clk
0:00:05.8]} 39. Kg2 {[%clk 0:00:11.9]} 39... Qg4+ {[%clk 0:00:05.8]} 40. Kh1
{[%clk 0:00:12.3]} 40... Qf3+ {[%clk 0:00:05.6]} 41. Kg1 {[%clk 0:00:12.2]}
41... Qg4+ {[%clk 0:00:05.8]} 42. Kh2 {[%clk 0:00:12.2]} 42... Qf4+ {[%clk
0:00:05.9]} 43. Kg2 {[%clk 0:00:11.8]} 43... Qg4+ {[%clk 0:00:06.1]} 44. Kf1
{[%clk 0:00:12.3]} 44... Qc4+ {[%clk 0:00:05.9]} 45. Re2 {[%clk 0:00:12.8]}
45... Ne6 {[%clk 0:00:05.9]} 46. Ke1 {[%clk 0:00:11.5]} 46... Qd5 {[%clk
0:00:04.5]} 47. Rd2 {[%clk 0:00:10.9]} 47... Qc4 {[%clk 0:00:02.9]} 48. Rd7+
{[%clk 0:00:09.9]} 48... Ke8 {[%clk 0:00:02.9]} 49. Rd2 {[%clk 0:00:09.4]} 49...
Qe4+ {[%clk 0:00:03]} 50. Re2 {[%clk 0:00:07.5]} 50... Qb1+ {[%clk 0:00:03.3]}
51. Kd2 {[%clk 0:00:07.9]} 51... Kf7 {[%clk 0:00:03.4]} 52. Rh3 {[%clk
0:00:06.8]} 52... Qa2 {[%clk 0:00:03]} 53. Rhe3 {[%clk 0:00:07]} 53... Qd5+
{[%clk 0:00:01.6]} 54. Kc1 {[%clk 0:00:06.6]} 54... Nf4 {[%clk 0:00:01.4]} 55.
Re7+ {[%clk 0:00:06.5]} 55... Kf8 {[%clk 0:00:01.8]} 56. Re8+ {[%clk 0:00:06.7]}
1-0

[Event "*** SCC Grand Prix: Titled Tuesday Blitz"]
[Site "Chess.com"]
[Date "2020.06.02"]
[Round "2"]
[White "NewBornNow"]
[Black "Grieve72"]
[Result "1-0"]
[WhiteElo "2692"]
[BlackElo "2357"]
[TimeControl "180+1"]
[EndTime "10:19:05 PDT"]
[Termination "NewBornNow won by checkmate"]

1. e4 {[%clk 0:03:00.9]} 1... c5 {[%clk 0:02:55.6]} 2. Nf3 {[%clk 0:03:00.7]}
2... e6 {[%clk 0:02:55.5]} 3. d3 {[%clk 0:02:59.6]} 3... Nc6 {[%clk 0:02:54.8]}
4. g3 {[%clk 0:02:59.7]} 4... Nf6 {[%clk 0:02:54.4]} 5. Bg2 {[%clk 0:02:58.4]}
5... d6 {[%clk 0:02:54.6]} 6. O-O {[%clk 0:02:57.2]} 6... Be7 {[%clk 0:02:55.2]}
7. c3 {[%clk 0:02:56.4]} 7... O-O {[%clk 0:02:55.2]} 8. Qe2 {[%clk 0:02:54.4]}
8... Bd7 {[%clk 0:02:51.9]} 9. d4 {[%clk 0:02:52.1]} 9... cxd4 {[%clk 0:02:52]}
10. cxd4 {[%clk 0:02:51.7]} 10... d5 {[%clk 0:02:52.3]} 11. e5 {[%clk
0:02:51.6]} 11... Ne4 {[%clk 0:02:52.7]} 12. Rd1 {[%clk 0:02:51.5]} 12... Qb6
{[%clk 0:02:34.4]} 13. Be3 {[%clk 0:02:50.7]} 13... Nb4 {[%clk 0:02:22.3]} 14.
Ne1 {[%clk 0:02:36.8]} 14... Rac8 {[%clk 0:01:59.6]} 15. Bxe4 {[%clk 0:02:36.2]}
15... dxe4 {[%clk 0:02:00.5]} 16. Nc3 {[%clk 0:02:35.4]} 16... Nd5 {[%clk
0:01:34.6]} 17. Nxe4 {[%clk 0:02:30.7]} 17... Bb5 {[%clk 0:01:34.6]} 18. Qf3
{[%clk 0:02:20.4]} 18... Bc6 {[%clk 0:01:31.4]} 19. Nd3 {[%clk 0:02:13.9]} 19...
f5 {[%clk 0:01:09.1]} 20. exf6 {[%clk 0:02:06.7]} 20... Bxf6 {[%clk 0:01:09.3]}
21. Qg4 {[%clk 0:01:47.1]} 21... Rce8 {[%clk 0:00:46.7]} 22. Rab1 {[%clk
0:01:14.6]} 22... Bxd4 {[%clk 0:00:38.5]} 23. Bxd4 {[%clk 0:01:10]} 23... Qxd4
{[%clk 0:00:39.4]} 24. Qe2 {[%clk 0:00:43.7]} 24... Ne3 {[%clk 0:00:25.4]} 25.
Qxe3 {[%clk 0:00:40.4]} 25... Qxe3 {[%clk 0:00:25.6]} 26. fxe3 {[%clk
0:00:40.2]} 26... Bxe4 {[%clk 0:00:26.2]} 27. Rbc1 {[%clk 0:00:37]} 27... Rc8
{[%clk 0:00:22.2]} 28. Nc5 {[%clk 0:00:33.3]} 28... Bd5 {[%clk 0:00:22.4]} 29.
e4 {[%clk 0:00:26]} 29... Bxa2 {[%clk 0:00:20.9]} 30. Nxb7 {[%clk 0:00:25.9]}
30... Rxc1 {[%clk 0:00:17.3]} 31. Rxc1 {[%clk 0:00:25.1]} 31... Rb8 {[%clk
0:00:17.1]} 32. Rc7 {[%clk 0:00:24.5]} 32... Bb1 {[%clk 0:00:13.6]} 33. Nc5
{[%clk 0:00:22.3]} 33... Rxb2 {[%clk 0:00:11.1]} 34. Nxe6 {[%clk 0:00:21.2]}
34... Bxe4 {[%clk 0:00:10.5]} 35. Rxg7+ {[%clk 0:00:20.9]} 35... Kh8 {[%clk
0:00:10.9]} 36. Rf7 {[%clk 0:00:19.4]} 36... h6 {[%clk 0:00:06.3]} 37. Rxa7
{[%clk 0:00:18.1]} 37... Rb1+ {[%clk 0:00:04]} 38. Kf2 {[%clk 0:00:17.6]} 38...
Bd5 {[%clk 0:00:04]} 39. Nf4 {[%clk 0:00:16.7]} 39... Bc6 {[%clk 0:00:03.1]} 40.
Ng6+ {[%clk 0:00:15.5]} 40... Kg8 {[%clk 0:00:02.9]} 41. Ne7+ {[%clk 0:00:16.4]}
41... Kf8 {[%clk 0:00:03]} 42. Nxc6 {[%clk 0:00:17.1]} 42... Rb2+ {[%clk
0:00:03.5]} 43. Kg1 {[%clk 0:00:16.7]} 43... h5 {[%clk 0:00:03.8]} 44. Ne5
{[%clk 0:00:16.3]} 44... Rb5 {[%clk 0:00:02.8]} 45. Ng6+ {[%clk 0:00:15.9]}
45... Kg8 {[%clk 0:00:03.3]} 46. Nh4 {[%clk 0:00:16.8]} 46... Rb1+ {[%clk
0:00:02.2]} 47. Kg2 {[%clk 0:00:17.1]} 47... Rb2+ {[%clk 0:00:03.1]} 48. Kh3
{[%clk 0:00:17.5]} 48... Rb5 {[%clk 0:00:04]} 49. Ng2 {[%clk 0:00:17.1]} 49...
Rb4 {[%clk 0:00:03.8]} 50. Nf4 {[%clk 0:00:17]} 50... h4 {[%clk 0:00:03.1]} 51.
Kxh4 {[%clk 0:00:16.6]} 51... Rb2 {[%clk 0:00:03.7]} 52. h3 {[%clk 0:00:15.9]}
52... Rb6 {[%clk 0:00:03.6]} 53. Nh5 {[%clk 0:00:15.2]} 53... Rc6 {[%clk
0:00:03.5]} 54. g4 {[%clk 0:00:15.4]} 54... Rb6 {[%clk 0:00:04.1]} 55. Ng3
{[%clk 0:00:14.9]} 55... Rb2 {[%clk 0:00:02.8]} 56. Nf5 {[%clk 0:00:15]} 56...
Rb6 {[%clk 0:00:03.7]} 57. Kg5 {[%clk 0:00:14.5]} 57... Rc6 {[%clk 0:00:04]} 58.
h4 {[%clk 0:00:14.4]} 58... Rb6 {[%clk 0:00:03.6]} 59. h5 {[%clk 0:00:14.7]}
59... Rc6 {[%clk 0:00:03.2]} 60. h6 {[%clk 0:00:14.9]} 60... Rb6 {[%clk
0:00:03.6]} 61. Kh5 {[%clk 0:00:15]} 61... Rb5 {[%clk 0:00:02.9]} 62. Kg5 {[%clk
0:00:11.1]} 62... Rb6 {[%clk 0:00:02.6]} 63. Ra5 {[%clk 0:00:11]} 63... Kh7
{[%clk 0:00:02.1]} 64. Rd5 {[%clk 0:00:10.8]} 64... Ra6 {[%clk 0:00:01.5]} 65.
Rd7+ {[%clk 0:00:10.2]} 65... Kh8 {[%clk 0:00:01.1]} 66. Rd6 {[%clk 0:00:11.1]}
66... Ra5 {[%clk 0:00:01.5]} 67. Kh5 {[%clk 0:00:10.5]} 67... Ra4 {[%clk
0:00:01.2]} 68. g5 {[%clk 0:00:10.3]} 68... Ra1 {[%clk 0:00:02.1]} 69. Rd8+
{[%clk 0:00:10]} 69... Kh7 {[%clk 0:00:02.7]} 70. g6# {[%clk 0:00:10.5]} 1-0

[Event "*** SCC Grand Prix: Titled Tuesday Blitz"]
[Site "Chess.com"]
[Date "2020.06.02"]
[Round "2"]
[White "larisakalinina"]
[Black "Lion-Al-Messi"]
[Result "0-1"]
[WhiteElo "1952"]
[BlackElo "2352"]
[TimeControl "180+1"]
[EndTime "10:19:05 PDT"]
[Termination "Lion-Al-Messi won by checkmate"]

1. e4 {[%clk 0:03:00.9]} 1... e6 {[%clk 0:02:57.9]} 2. d3 {[%clk 0:02:58.5]}
2... d5 {[%clk 0:02:58]} 3. Qe2 {[%clk 0:02:57.8]} 3... dxe4 {[%clk 0:02:57]} 4.
dxe4 {[%clk 0:02:57.8]} 4... e5 {[%clk 0:02:57.4]} 5. Nf3 {[%clk 0:02:57.6]}
5... Nc6 {[%clk 0:02:56.2]} 6. c3 {[%clk 0:02:56.4]} 6... Bd6 {[%clk 0:02:55.9]}
7. Qc2 {[%clk 0:02:48.2]} 7... Nf6 {[%clk 0:02:55.4]} 8. Be2 {[%clk 0:02:45.7]}
8... O-O {[%clk 0:02:52.8]} 9. O-O {[%clk 0:02:46.1]} 9... h6 {[%clk 0:02:48.3]}
10. Rd1 {[%clk 0:02:43.7]} 10... a5 {[%clk 0:02:46.9]} 11. a4 {[%clk 0:02:39]}
11... Qe7 {[%clk 0:02:46.9]} 12. Na3 {[%clk 0:02:37.2]} 12... Bg4 {[%clk
0:02:43.8]} 13. Nc4 {[%clk 0:02:36.3]} 13... Rad8 {[%clk 0:02:44.1]} 14. Be3
{[%clk 0:02:32.4]} 14... Bc5 {[%clk 0:02:35]} 15. h3 {[%clk 0:02:28.9]} 15...
Bh5 {[%clk 0:02:33.2]} 16. Rxd8 {[%clk 0:02:14.7]} 16... Rxd8 {[%clk 0:02:32.4]}
17. Rd1 {[%clk 0:02:13.8]} 17... Rxd1+ {[%clk 0:02:29.7]} 18. Bxd1 {[%clk
0:02:14.1]} 18... Bg6 {[%clk 0:02:29.4]} 19. Bxc5 {[%clk 0:02:07.9]} 19... Qxc5
{[%clk 0:02:27.9]} 20. Ncd2 {[%clk 0:02:08.1]} 20... Nd8 {[%clk 0:02:18.2]} 21.
Be2 {[%clk 0:02:02.4]} 21... Ne6 {[%clk 0:02:17.6]} 22. g3 {[%clk 0:01:57.4]}
22... b6 {[%clk 0:02:11.6]} 23. Kg2 {[%clk 0:01:56]} 23... Qc6 {[%clk
0:02:09.7]} 24. Bd3 {[%clk 0:01:53.6]} 24... Qd6 {[%clk 0:02:07.9]} 25. Nc4
{[%clk 0:01:51]} 25... Qe7 {[%clk 0:01:58]} 26. Ncxe5 {[%clk 0:01:48.9]} 26...
Bh7 {[%clk 0:01:57.4]} 27. Nc6 {[%clk 0:01:45.1]} 27... Qe8 {[%clk 0:01:56.2]}
28. Nfd4 {[%clk 0:01:44.2]} 28... Nc5 {[%clk 0:01:52.5]} 29. f3 {[%clk
0:01:40.6]} 29... Nfxe4 {[%clk 0:01:48.5]} 30. Bxe4 {[%clk 0:01:38.9]} 30...
Nxe4 {[%clk 0:01:46.4]} 31. Qe2 {[%clk 0:01:37.2]} 31... Nd6 {[%clk 0:01:41.8]}
32. Qxe8+ {[%clk 0:01:37]} 32... Nxe8 {[%clk 0:01:42.7]} 33. Nb5 {[%clk
0:01:35.6]} 33... Bc2 {[%clk 0:01:39.6]} 34. Ne7+ {[%clk 0:01:30.7]} 34... Kf8
{[%clk 0:01:37]} 35. Nd5 {[%clk 0:01:21.9]} 35... c6 {[%clk 0:01:33.2]} 36. Ne3
{[%clk 0:01:21.4]} 36... Bxa4 {[%clk 0:01:27.6]} 37. Nd4 {[%clk 0:01:21.6]}
37... c5 {[%clk 0:01:26.7]} 38. Ndf5 {[%clk 0:01:13.2]} 38... Bd7 {[%clk
0:01:22.7]} 39. g4 {[%clk 0:01:05.3]} 39... Nc7 {[%clk 0:01:20.1]} 40. Nd6
{[%clk 0:01:02.7]} 40... Ke7 {[%clk 0:00:58]} 41. Ndc4 {[%clk 0:00:59.4]} 41...
b5 {[%clk 0:00:43.9]} 42. Nxa5 {[%clk 0:00:58.8]} 42... Kd6 {[%clk 0:00:32.5]}
43. Nb3 {[%clk 0:00:52.2]} 43... Be6 {[%clk 0:00:32.3]} 44. Nd2 {[%clk
0:00:50.8]} 44... b4 {[%clk 0:00:27.3]} 45. Ne4+ {[%clk 0:00:48.6]} 45... Kc6
{[%clk 0:00:27.1]} 46. cxb4 {[%clk 0:00:43.3]} 46... cxb4 {[%clk 0:00:28]} 47.
Kf2 {[%clk 0:00:41.1]} 47... Kb5 {[%clk 0:00:21.8]} 48. Ke2 {[%clk 0:00:37.3]}
48... Nd5 {[%clk 0:00:18.1]} 49. Nxd5 {[%clk 0:00:28.3]} 49... Bxd5 {[%clk
0:00:19]} 50. Kd2 {[%clk 0:00:28]} 50... Bxe4 {[%clk 0:00:16.2]} 51. fxe4 {[%clk
0:00:27.1]} 51... Kc4 {[%clk 0:00:16]} 52. Kc2 {[%clk 0:00:25.8]} 52... b3+
{[%clk 0:00:14.2]} 53. Kd2 {[%clk 0:00:25.2]} 53... Kd4 {[%clk 0:00:15.1]} 54.
e5 {[%clk 0:00:22.9]} 54... g6 {[%clk 0:00:11.9]} 55. h4 {[%clk 0:00:18.2]}
55... Kxe5 {[%clk 0:00:10.9]} 56. Kc3 {[%clk 0:00:17.3]} 56... f5 {[%clk
0:00:10.1]} 57. gxf5 {[%clk 0:00:14.3]} 57... gxf5 {[%clk 0:00:11]} 58. Kxb3
{[%clk 0:00:14.4]} 58... Kd4 {[%clk 0:00:05.5]} 59. Ka4 {[%clk 0:00:13.9]} 59...
f4 {[%clk 0:00:04.8]} 60. b4 {[%clk 0:00:11.7]} 60... f3 {[%clk 0:00:05.2]} 61.
b5 {[%clk 0:00:12]} 61... f2 {[%clk 0:00:05.6]} 62. b6 {[%clk 0:00:12.2]} 62...
f1=Q {[%clk 0:00:05.6]} 63. Ka5 {[%clk 0:00:11.3]} 63... Qa1+ {[%clk 0:00:05.2]}
64. Kb5 {[%clk 0:00:10.5]} 64... Kd5 {[%clk 0:00:05.2]} 65. b7 {[%clk
0:00:08.6]} 65... Qb2+ {[%clk 0:00:06.1]} 66. Ka6 {[%clk 0:00:08.1]} 66... Kc6
{[%clk 0:00:06.1]} 67. Ka5 {[%clk 0:00:04.4]} 67... Qb5# {[%clk 0:00:05.2]} 0-1

[Event "*** SCC Grand Prix: Titled Tuesday Blitz"]
[Site "Chess.com"]
[Date "2020.06.02"]
[Round "2"]
[White "vaishali2001"]
[Black "Salem-AR"]
[Result "1-0"]
[WhiteElo "2611"]
[BlackElo "3033"]
[TimeControl "180+1"]
[EndTime "10:19:09 PDT"]
[Termination "vaishali2001 won by resignation"]

1. e4 {[%clk 0:03:00.9]} 1... c5 {[%clk 0:03:00.2]} 2. Nc3 {[%clk 0:03:00.3]}
2... Nc6 {[%clk 0:03:00.3]} 3. Nge2 {[%clk 0:02:58.4]} 3... Nf6 {[%clk 0:02:58]}
4. d4 {[%clk 0:02:55.6]} 4... cxd4 {[%clk 0:02:58.9]} 5. Nxd4 {[%clk 0:02:56.2]}
5... e5 {[%clk 0:02:59.5]} 6. Ndb5 {[%clk 0:02:55.2]} 6... d6 {[%clk 0:03:00]}
7. Bg5 {[%clk 0:02:55.4]} 7... a6 {[%clk 0:02:59.9]} 8. Na3 {[%clk 0:02:55.8]}
8... b5 {[%clk 0:03:00.6]} 9. Bxf6 {[%clk 0:02:51]} 9... gxf6 {[%clk 0:03:00.5]}
10. Nd5 {[%clk 0:02:51.5]} 10... f5 {[%clk 0:03:01.2]} 11. g3 {[%clk 0:02:49.7]}
11... Bg7 {[%clk 0:02:50.7]} 12. Bg2 {[%clk 0:02:49.7]} 12... fxe4 {[%clk
0:01:58.6]} 13. O-O {[%clk 0:02:31.5]} 13... O-O {[%clk 0:01:48.1]} 14. Bxe4
{[%clk 0:02:14.7]} 14... f5 {[%clk 0:01:48]} 15. Bg2 {[%clk 0:02:13.7]} 15...
Ra7 {[%clk 0:01:45]} 16. c3 {[%clk 0:01:55.8]} 16... Ne7 {[%clk 0:01:20]} 17. f4
{[%clk 0:01:37.6]} 17... e4 {[%clk 0:01:15.9]} 18. Nc2 {[%clk 0:01:33.9]} 18...
Nxd5 {[%clk 0:01:10.4]} 19. Qxd5+ {[%clk 0:01:34.8]} 19... Kh8 {[%clk
0:01:11.1]} 20. Rad1 {[%clk 0:01:31.3]} 20... Qb6+ {[%clk 0:00:47.4]} 21. Kh1
{[%clk 0:01:26.3]} 21... Rd7 {[%clk 0:00:20.1]} 22. a3 {[%clk 0:01:16.5]} 22...
Bb7 {[%clk 0:00:18.2]} 23. Qd2 {[%clk 0:01:16.2]} 23... d5 {[%clk 0:00:17.6]}
24. Nd4 {[%clk 0:01:14.5]} 24... a5 {[%clk 0:00:16.5]} 25. Qe3 {[%clk
0:01:11.5]} 25... Rd6 {[%clk 0:00:13.4]} 26. Qd2 {[%clk 0:00:52.3]} 26... Bc8
{[%clk 0:00:12.7]} 27. Rfe1 {[%clk 0:00:49.3]} 27... Bd7 {[%clk 0:00:13.1]} 28.
Nc2 {[%clk 0:00:29]} 28... Rd8 {[%clk 0:00:13]} 29. Re2 {[%clk 0:00:21.8]} 29...
h5 {[%clk 0:00:13.3]} 30. Qe1 {[%clk 0:00:21.8]} 30... Be8 {[%clk 0:00:11.9]}
31. Red2 {[%clk 0:00:21.1]} 31... h4 {[%clk 0:00:11.6]} 32. gxh4 {[%clk
0:00:20.1]} 32... Bh5 {[%clk 0:00:12.2]} 33. Rc1 {[%clk 0:00:14.8]} 33... Bh6
{[%clk 0:00:12.8]} 34. Qf2 {[%clk 0:00:12.5]} 34... Qxf2 {[%clk 0:00:08.6]} 35.
Rxf2 {[%clk 0:00:13.4]} 35... Rg8 {[%clk 0:00:07.3]} 36. Nd4 {[%clk 0:00:13.6]}
36... Rf6 {[%clk 0:00:07.3]} 37. Nxb5 {[%clk 0:00:12.3]} 37... e3 {[%clk
0:00:07.2]} 38. Rff1 {[%clk 0:00:11.3]} 38... e2 {[%clk 0:00:07.7]} 39. Rf2
{[%clk 0:00:10.6]} 39... Rb6 {[%clk 0:00:06.3]} 40. a4 {[%clk 0:00:09.2]} 40...
Rbg6 {[%clk 0:00:06.4]} 41. Re1 {[%clk 0:00:08.5]} 41... Rxg2 {[%clk 0:00:06.8]}
42. Rxg2 {[%clk 0:00:08.2]} 42... Bf3 {[%clk 0:00:06]} 43. Rxe2 {[%clk 0:00:07]}
43... Rxg2 {[%clk 0:00:05.5]} 44. Rxg2 {[%clk 0:00:06.9]} 44... Bxf4 {[%clk
0:00:06]} 45. Kg1 {[%clk 0:00:07.1]} 45... Be3+ {[%clk 0:00:06.4]} 46. Kf1
{[%clk 0:00:07.4]} 46... Bxg2+ {[%clk 0:00:06]} 47. Kxg2 {[%clk 0:00:08.3]}
47... Kg7 {[%clk 0:00:05.9]} 48. Kf3 {[%clk 0:00:08.4]} 48... Bc1 {[%clk
0:00:05.8]} 49. b4 {[%clk 0:00:08.2]} 49... axb4 {[%clk 0:00:06.4]} 50. cxb4
{[%clk 0:00:09.1]} 50... Bd2 {[%clk 0:00:07]} 51. a5 {[%clk 0:00:09.5]} 51...
Bxb4 {[%clk 0:00:07.6]} 52. a6 {[%clk 0:00:10]} 52... Bc5 {[%clk 0:00:08.3]} 53.
a7 {[%clk 0:00:10.5]} 53... Bxa7 {[%clk 0:00:09]} 54. Nxa7 {[%clk 0:00:11.3]}
54... Kh6 {[%clk 0:00:09.7]} 55. Nc6 {[%clk 0:00:10.9]} 55... Kh5 {[%clk
0:00:10.2]} 56. Kg3 {[%clk 0:00:11.2]} 56... f4+ {[%clk 0:00:10.8]} 57. Kh3
{[%clk 0:00:10.4]} 57... f3 {[%clk 0:00:11.3]} 58. Nd4 {[%clk 0:00:10]} 58... f2
{[%clk 0:00:11.4]} 59. Kg2 {[%clk 0:00:10.5]} 59... Kxh4 {[%clk 0:00:12.3]} 60.
Kxf2 {[%clk 0:00:10.9]} 60... Kg4 {[%clk 0:00:12.7]} 61. Kg2 {[%clk 0:00:10.5]}
61... Kf4 {[%clk 0:00:13.4]} 62. h3 {[%clk 0:00:09.1]} 62... Ke4 {[%clk
0:00:13.4]} 63. Nb3 {[%clk 0:00:08.9]} 63... Ke3 {[%clk 0:00:13.2]} 64. Kg3
{[%clk 0:00:09.1]} 64... Ke4 {[%clk 0:00:13.7]} 65. Kg4 {[%clk 0:00:08.8]} 65...
Ke5 {[%clk 0:00:11.8]} 66. Kg5 {[%clk 0:00:08.7]} 66... d4 {[%clk 0:00:11.7]}
67. Nxd4 {[%clk 0:00:07.5]} 67... Kxd4 {[%clk 0:00:12.6]} 68. h4 {[%clk
0:00:08.1]} 1-0

[Event "*** SCC Grand Prix: Titled Tuesday Blitz"]
[Site "Chess.com"]
[Date "2020.06.02"]
[Round "2"]
[White "Willychess95"]
[Black "EnergeticHay"]
[Result "1-0"]
[WhiteElo "2500"]
[BlackElo "2194"]
[TimeControl "180+1"]
[EndTime "10:19:10 PDT"]
[Termination "Willychess95 won by resignation"]

1. e4 {[%clk 0:03:00]} 1... c5 {[%clk 0:03:00.3]} 2. Nf3 {[%clk 0:02:59.6]} 2...
d6 {[%clk 0:03:00.6]} 3. d4 {[%clk 0:03:00]} 3... cxd4 {[%clk 0:03:01.5]} 4.
Nxd4 {[%clk 0:03:00.6]} 4... Nf6 {[%clk 0:03:02.1]} 5. Nc3 {[%clk 0:03:00.9]}
5... a6 {[%clk 0:03:02.6]} 6. Bg5 {[%clk 0:03:00.9]} 6... e6 {[%clk 0:03:02.9]}
7. f4 {[%clk 0:03:00.7]} 7... h6 {[%clk 0:03:03.2]} 8. Bh4 {[%clk 0:02:59.9]}
8... Be7 {[%clk 0:03:03.1]} 9. Qf3 {[%clk 0:02:58.4]} 9... Nbd7 {[%clk
0:03:03.4]} 10. O-O-O {[%clk 0:02:57.6]} 10... Qc7 {[%clk 0:03:03.7]} 11. Bd3
{[%clk 0:02:54.7]} 11... b5 {[%clk 0:03:03.2]} 12. e5 {[%clk 0:02:43.9]} 12...
Bb7 {[%clk 0:03:01.8]} 13. exf6 {[%clk 0:02:44]} 13... Bxf3 {[%clk 0:02:57.1]}
14. Nxe6 {[%clk 0:02:36.2]} 14... fxe6 {[%clk 0:02:34.5]} 15. Bg6+ {[%clk
0:02:31.7]} 15... Kf8 {[%clk 0:02:33.9]} 16. fxe7+ {[%clk 0:02:32.6]} 16... Kg8
{[%clk 0:02:33.9]} 17. gxf3 {[%clk 0:02:32.3]} 17... Nf6 {[%clk 0:01:16.5]} 18.
Bxf6 {[%clk 0:02:27.1]} 18... gxf6 {[%clk 0:01:17.4]} 19. e8=Q+ {[%clk
0:02:23.1]} 19... Rxe8 {[%clk 0:01:17.7]} 20. Bxe8 {[%clk 0:02:24]} 20... Kf8
{[%clk 0:01:18.2]} 21. Bh5 {[%clk 0:02:21.8]} 21... d5 {[%clk 0:01:18.3]} 22.
Ne2 {[%clk 0:02:16.1]} 22... Ke7 {[%clk 0:01:18.7]} 23. Rhe1 {[%clk 0:02:13.3]}
23... Rc8 {[%clk 0:01:18]} 24. Rd2 {[%clk 0:02:12.3]} 24... b4 {[%clk
0:01:15.2]} 25. Nd4 {[%clk 0:02:03.9]} 25... Qxf4 {[%clk 0:01:07.5]} 26. Nxe6
{[%clk 0:01:51.2]} 26... Qh4 {[%clk 0:01:00]} 27. Rde2 {[%clk 0:01:50.9]} 27...
Kd6 {[%clk 0:00:56.6]} 28. Bg6 {[%clk 0:01:39]} 28... Rg8 {[%clk 0:00:53.1]} 29.
Bd3 {[%clk 0:01:36]} 29... Re8 {[%clk 0:00:46.5]} 30. f4 {[%clk 0:01:30.2]}
30... Rg8 {[%clk 0:00:41.5]} 31. f5 {[%clk 0:01:27.7]} 31... Rg2 {[%clk
0:00:38.5]} 32. b3 {[%clk 0:01:23.6]} 32... Rxh2 {[%clk 0:00:38.2]} 33. Bxa6
{[%clk 0:01:08.6]} 33... Rxe2 {[%clk 0:00:35.8]} 34. Rxe2 {[%clk 0:01:06.5]}
34... Qh1+ {[%clk 0:00:36.3]} 35. Kb2 {[%clk 0:01:02.8]} 35... Qf3 {[%clk
0:00:37.2]} 36. Bd3 {[%clk 0:01:00.3]} 36... h5 {[%clk 0:00:35.8]} 37. Nd4
{[%clk 0:00:51.2]} 37... Qg4 {[%clk 0:00:33.5]} 38. c3 {[%clk 0:00:33.5]} 38...
bxc3+ {[%clk 0:00:29]} 39. Kxc3 {[%clk 0:00:34.3]} 39... h4 {[%clk 0:00:29.6]}
40. Re6+ {[%clk 0:00:31]} 40... Kd7 {[%clk 0:00:29.6]} 41. Rxf6 {[%clk
0:00:30.1]} 41... h3 {[%clk 0:00:28.2]} 42. Rf7+ {[%clk 0:00:29.2]} 42... Kd6
{[%clk 0:00:27.4]} 43. Rh7 {[%clk 0:00:28.1]} 43... Qg3 {[%clk 0:00:21.6]} 44.
f6 {[%clk 0:00:23.6]} 44... Qe1+ {[%clk 0:00:12.4]} 45. Kc2 {[%clk 0:00:19.5]}
45... Qf2+ {[%clk 0:00:12.8]} 46. Ne2 {[%clk 0:00:14.6]} 46... h2 {[%clk
0:00:13.1]} 47. f7 {[%clk 0:00:13.7]} 47... Qxf7 {[%clk 0:00:13.4]} 48. Rxh2
{[%clk 0:00:09.7]} 48... Qf6 {[%clk 0:00:13.6]} 49. Rg2 {[%clk 0:00:07.2]} 49...
Kc5 {[%clk 0:00:13.5]} 50. Nc3 {[%clk 0:00:03.2]} 50... Qe5 {[%clk 0:00:11.8]}
51. Na4+ {[%clk 0:00:02.9]} 51... Kd6 {[%clk 0:00:11.1]} 52. Rg6+ {[%clk
0:00:02.4]} 52... Ke7 {[%clk 0:00:11.7]} 53. Rg2 {[%clk 0:00:02.7]} 53... Qf4
{[%clk 0:00:09.6]} 54. Re2+ {[%clk 0:00:02.8]} 54... Kf7 {[%clk 0:00:09.6]} 55.
Nc3 {[%clk 0:00:02.9]} 55... Qc7 {[%clk 0:00:09.8]} 56. Kb2 {[%clk 0:00:02.1]}
56... d4 {[%clk 0:00:10]} 57. Nd5 {[%clk 0:00:02.3]} 57... Qc5 {[%clk
0:00:09.5]} 58. Rc2 {[%clk 0:00:02.4]} 58... Qd6 {[%clk 0:00:08.5]} 59. Bc4
{[%clk 0:00:02.9]} 59... Kf8 {[%clk 0:00:08.1]} 60. Rd2 {[%clk 0:00:03.4]} 60...
Qe5 {[%clk 0:00:08.2]} 61. Kc2 {[%clk 0:00:04]} 61... Ke8 {[%clk 0:00:08.4]} 62.
Rd3 {[%clk 0:00:03.9]} 62... Kd8 {[%clk 0:00:08.2]} 63. Rd2 {[%clk 0:00:04.7]}
63... Kd7 {[%clk 0:00:08]} 64. a4 {[%clk 0:00:05.6]} 64... Kd6 {[%clk
0:00:08.1]} 65. Nb4 {[%clk 0:00:05.2]} 65... Qe4+ {[%clk 0:00:08]} 66. Nd3
{[%clk 0:00:05.2]} 66... Qe5 {[%clk 0:00:08.9]} 67. Nxe5 {[%clk 0:00:04.9]}
67... Kxe5 {[%clk 0:00:09.8]} 1-0